Workbook

Sheet NPN
B1: Beregning af en DC Stabiliseret AC BJT NPN forstærker med fælles emitter kobling | Q1: NPN Transistor: | S1: =+B6 -> 2N2222A | V1: Diagrammerne herunder er med de aktuelle værdier i røde tal
B3: Vælg en NPN transistor og indsæt disse data herunder: | H3: VBE 0,6 V til 0,9 V - VE 1 til 2 volt eller 10% af Vcc - RL vælges | M3: Udarbejdet af Jørgen Walter © | Q3: Værdierne herunder er de aktuelle værdier | U3: ẞ = | V3: =+$C$6 -> 205 | W3: =+$S$1 -> 2N2222A | AA3: Common Emitter Amplifier
B4: =CONCATENATE("Find ẞ = hfe ved en IC på ", J10,G10," og VCE på ",J16,E16) -> Find ẞ = hfe ved en IC på 5 mA og VCE på 4 V | F4: Vcc | G4: RC vælges | H4: VBE volt | I4: VE vælges | J4: RL | K4: Grænse frekvens i Hz | Q4: som skifter med indsatte data | U4: Av = | V4: =+F36 -> 4.403843574 | W4: Beregnet | Y4: =+$S$1 -> 2N2222A
B5: Vælg ẞ fra data blad | D5: *Min | E5: *Max | F5: Volt | G5: kΩ | H5: Silicium | I5: Volt | J5: kΩ | K5: Nedre | L5: Øvre | M5: www.walter-lystfisker.dk | Q5: Det var modstandene | U5: Av = | V5: =+'2N2222A'!J45 -> 4.4209 | W5: Default for 2N2222A i simulator program
B6: 2N2222A | C6: =INT(SQRT(D6*E6)) -> 205 | D6: 205 | E6: 205 | F6: 10 | G6: 1 | H6: 0.7 | I6: 1 | J6: 10 | K6: 100 | L6: 30000 | M6: COPYRIGHT © 2014 | Q6: R1 | R6: =+I27 -> 31 | S6: =+J27 -> kΩ | U6: Av = | V6: =+BC547B!J45 -> 2.9064 | W6: Default for BC547B i simulator program
B7: Common Emitter Amplifier | Q7: R2 | R7: =+I24 -> 7 | S7: =+J24 -> kΩ
B8: *Ønskes en bestemt ẞ værdi i grøn celle, indsættes denne værdi i Min og Max, som her: | H8: 205 | I8: Iflg. datablad: | J8: 50 til 375 | Q8: RC | R8: =+G6 -> 1 | S8: =+G5 -> kΩ
B9: De fire nedenfor stående formler er et udtryk for hvilestrømmen i transistoren uden signal og ingen belastning. Quiescent Point - Q-point | Q9: RE1 | R9: =+I28 -> 199 | S9: =+J28 -> Ω
B10: ICQ = ½*Vcc/Rc = | D10: =(F6/2)/(G6*1000) -> 0.005 | E10: A | F10: =D10*1000 -> 5 | G10: mA | H10: ICQ = Collector hvilestrøm | J10: =ROUND(F10,0) -> 5 | Q10: RE2 | R10: =+I73 -> 801 | S10: =+J73 -> Ω
B11: IB = ICQ/ẞ = | D11: =D10/C6 -> 2.43902439e-05 | E11: A | F11: =D11*1000 -> 0.0243902439 | G11: mA | H11: IB = Base strøm | Q11: RL | R11: =+J6 -> 10 | S11: =+J5 -> kΩ
B12: IE = ICQ+IB = | D12: =D10+D11 -> 0.005024390244 | E12: A | F12: =D12*1000 -> 5.024390244 | G12: mA | H12: IE = Emitter strøm | K12: Disse makro knapper indsætter default værdier | Q12: Det var afkoblings kondensatorerne
B13: IEs split emitter = VE/(RE1+RE2) = | D13: =I6/(D28+F73) -> 0.001 | E13: A | F13: =D13*1000 -> 1 | G13: mA | H13: IEs = Split Emitter strøm | Q13: C3 | R13: =+I48 -> 80 | S13: =+J48 -> uF | AB13: =CONCATENATE(R6,S6) -> 31 kΩ | AF13: =CONCATENATE(R8,S8) -> 1 kΩ
Q14: C4 | R14: =+I81 -> 20 | S14: =+J81 -> uF
B15: VRC = ICQ * RC = | D15: =F10*G6 -> 5 | E15: V | F15: Spænding over Collectormodstand | Q15: Det var overførings kondensatorerne | AB15: =+B6 -> 2N2222A
B16: VCE = VCC - VE - (RC*ICQ) = | D16: =F6-I6-(G6*1000*D10) -> 4 | E16: V | F16: Spænding over Collector Emitter | J16: =ROUND(D16,0) -> 4 | Q16: C1 - C12 - C13 | R16: =+I93 -> 1.68 | S16: =+J93 -> uF | AG16: =CONCATENATE(R17,S17) -> 0,16 uF
B17: VE skal vælges = | D17: =+I6 -> 1 | E17: V | F17: normal vil den være mellem 1 volt og 2 volt, eller 10% af Vcc | Q17: C2 - C22 - C23 | R17: =+I100 -> 0.16 | S17: =+J100 -> uF
B18: Vcc kontrol = | D18: =SUM(D15:D17) -> 10 | E18: V | F18: =IF(D18=F6,"Korrekt","Fejl") -> Korrekt | Y18: =CONCATENATE(R16,S16) -> 1,68 uF | AL18: =CONCATENATE(F6,F5) -> 10 Volt
B19: VBE er normal = | D19: =+H6 -> 0.7 | E19: V | F19: for silicium transistorer (Base Emitter spændingen) | Q19: Liste for VBE i volt
B20: VB = VE + VBE = | D20: =I6+H6 -> 1.7 | E20: V | Q20: 0.1
H21: De røde afrundet værdier indsættes i diagrammerne | Q21: 0.2 | R21: Germanium | AB21: =CONCATENATE(R7,S7) -> 7 kΩ | AF21: =CONCATENATE(R9,S9) -> 199 Ω | AJ21: =CONCATENATE(R11,S11) -> 10 kΩ
B22: R2 skal beregnes. Normalt skal strømmen gennem R2 være 10 gange IB | L22: K2 strøm faktor R2 | N22: 10 | Q22: 0.3 | R22: Germanium
B23: IR2 = K2 * IB = | F23: =N22*F11 -> 0.243902439 | G23: mA | L23: Andre værdier af strøm faktorer | Q23: 0.4
B24: R2 = VB/IR2 = | D24: =D20/(F23*10^-3) -> 6970 | E24: Ohm | F24: =D24/1000 -> 6.97 | G24: kΩ | I24: =ROUND(F24,0) -> 7 | J24: kΩ | Q24: 0.5
B25: R1 skal beregnes. Normalt skal strømmen gennem R1 være 11 gange IB | L25: K1 strøm faktor R1 | N25: 11 | Q25: 0.6 | R25: Silicium BJT
B26: IR1 = K1 * IB = | F26: =N25*F11 -> 0.2682926829 | G26: mA | Q26: 0.7 | R26: Silicium BJT
B27: R1 = (Vcc - VB)/IR1 = | D27: =(F6-D20)/(F26*10^-3) -> 30936.36364 | E27: Ω | F27: =D27/1000 -> 30.93636364 | G27: kΩ | I27: =ROUND(F27,0) -> 31 | J27: kΩ | Q27: 0.8 | R27: Silicium BJT
B28: RE1 = VE/IE = | D28: =I6/(F12*10^-3) -> 199.0291262 | E28: Ω | F28: =D28/1000 -> 0.1990291262 | G28: kΩ | I28: =ROUND(D28,0) -> 199 | J28: Ω | Q28: 0.9 | R28: Silicium BJT
Q29: 1 | U29: ẞ = | V29: =+$C$6 -> 205 | W29: =+$S$1 -> 2N2222A | AA29: Emitter by-pass kondensator:
B30: Gain = Zud/ZE = (RC//(1/hoe)//RL)/ZE - I tæller har RC størst indflydelse, derefter RL, og *hoe sættes til 10 umhos. I nævner kan ZE antage 3 værdier uden / med kondensator C3 og split emitter | U30: Av = | V30: =+F37 -> 162.5477417 | W30: Beregnet | Y30: =+$S$1 -> 2N2222A
B31: Zud = RC//(1/hoe) = | F31: =+F97 -> 0.9900990099 | G31: kΩ | H31: se nederst på siden under udgangsimpedans | U31: Av = | V31: =+'2N2222A'!J93 -> 146.33 | W31: =+W5 -> Default for 2N2222A i simulator program
B32: ZE uden C3 = (RE1 + rE) for ikke afkoblet emitter | F32: =D28+F33 -> 204.5715034 | G32: Ω | H32: rE afhænger af Boltzmanns konstant og temperaturen i Kelvin. Se T.H. overfor -------------------------------------------------> | Q32: rE = Vt/IE = | S32: =S37/S44 -> 5.542377219 | T32: Ω | U32: Av = | V32: =+BC547B!J93 -> 103.315 | W32: =+W6 -> Default for BC547B i simulator program
B33: ZE med C3 = rE for afkoblet emitter = | E33: Vt/IE = | F33: =L33/F12 -> 5.542377219 | G33: Ω | H33: rE emitterens indre modstand, som varierer med IE og Vt = | L33: =+S37 -> 27.84706603 | M33: mV | N33: Vt mellem 25 og 30 [ 20°C og 80°C]
B34: ZE uden C3 = (RE1 + rEE) for ikke afkoblet emitter | F34: =+D28+F35 -> 226.8761922 | G34: Ω
B35: ZE for split emitter = (RE1 + rEE) = | E35: Vt/IEs = | F35: =L33/F13 -> 27.84706603 | G35: Ω | Q35: http://en.wikipedia.org/wiki/Boltzmann%27s_constant
B36: Gain (uden C3) = (Zud//RL)/ZE uden C3 = | F36: =((F31*J6)/(F31+J6))*1000/F32 -> 4.403843574 | H36: Diagram Fig. 1 Uden kondensator C3
B37: Gain (med C3) = (Zud//RL)/ZE med C3 = | F37: =((F31*J6)/(F31+J6))*1000/F33 -> 162.5477417 | H37: Diagram Fig. 2 Med kondensator C4 | Q37: Vt = k *T / q = (k/q) *T = KB*T = | S37: =(S43*S40)*1000 -> 27.84706603 | T37: [mVolt]
B38: Gain (Split) = (Zud//RL)/ZE uden C3 = | F38: =((F31*J6)/(F31+J6))*1000/F34 -> 3.970892195 | H38: Diagram Fig. 3 Split Emitter modstand. Lidt mindre end fig. 1, da rEE er større på grund af at IEs er mindre | Q38: Vt = thermal spænding over p-n overgangen i transistoren
Q39: k = Boltzmanns konstant = | S39: 1,3806488*10^-23 | T39: [J/K]
B40: Emitter modstanden RE1 i diagrammet Fig. 1 ovenfor har to funktioner. 1. DC negativ feedback for stabil base forspænding (biasing). 2. AC negativ feedback for signalet og spændings | Q40: T = Kelvin grader | S40: =S41+S45 -> 323.15 | T40: [K] | AB40: =+AB13 -> 31 kΩ | AF40: =+AF13 -> 1 kΩ
B41: forstærkningen (gain). Det medfører en reduktion af forstærkningen på grund af, at der sker en fluktuation i IE strømmen, når AC signalet på indgangen ændre sig. | Q41: Temperatur inden i transistoren = | S41: 50 | T41: [°C]
B42: For at afhjælpe dette problem kan der indføres en kondensator CE (Emitter by-pass kondensator). Se diagrammet i Fig. 2 nedenfor. Kondensatoren har et åbent kredsløb for DC, | Q42: q = positiv ladning = | S42: 1,602176565*10^-19 | T42: [Coulomb] | AB42: =+AB15 -> 2N2222A
B43: men en reaktans XC for AC, som er afhængig af signalet (frekvensen). Reaktansen XC vælges til 1/10 af Emitter modstanden RE1 ved den nedre cut-off frekvens. | Q43: KB Boltzmanns eV konstant = k/q = | S43: =(1.3806488/10^23)/(1.602167565/10^19) -> 8.617380792e-05 | T43: [eV/K] | AG43: =+AG16 -> 0,16 uF
B44: Ved lave frekvenser mister forstærkeren dog nogen Gain. Ønsker du en anden faktor K3 , så tast den her: | M44: K3 | N44: 10 | Q44: IE = Emitter strømmen | S44: =+F12 -> 5.024390244 | T44: [mA]
Q45: 0 K = | S45: 273.15 | T45: °C | Y45: =+Y18 -> 1,68 uF | AL45: =+AL18 -> 10 Volt
B46: Emitter by-pass kondensator: | Q46: NB: q regnes med fortegn. Her plus.
B47: XC = RE1/K3 = | F47: =D28/N44 -> 19.90291262 | G47: Ω | Q47: Kommer af at IE regnes positivt i NPN transistorer.
B48: C3 = 1/(2pi*f3dB lav*XC = | F48: =(1/(2*PI()*K6*F47))*10^6 -> 79.96565433 | G48: uF | I48: =ROUND(F48,0) -> 80 | J48: uF | AB48: =+AB21 -> 7 kΩ | AF48: =+AF21 -> 199 Ω | AJ48: =+AJ21 -> 10 kΩ
B49: XClav = 1/(2pi*f3dB lav*CE = | F49: =1/(2*PI()*K6*F48*10^-6) -> 19.90291262 | G49: Ω | H49: f3dB | I49: =CONCATENATE("Ved ",K5,K4,K6) -> Ved Nedre Grænse frekvens i Hz 100
B50: XChøj = 1/(2pi*f3dB høj*CE = | F50: =1/(2*PI()*L6*F48*10^-6) -> 0.06634304207 | G50: Ω | H50: f3dB | I50: =CONCATENATE("Ved ",L5,K4,L6) -> Ved Øvre Grænse frekvens i Hz 30000 | AB50: =CONCATENATE(R13,S13) -> 80 uF
B52: Emitter by-pass kondensatoren bevirker en ensartet forstærkning ved spredning af beta værdierne for den enkelte transistor.
B53: Træerne vokser som bekendt ikke ind i himlen, så der er også ulemper ved at indsætte en emitter by-pass kondensator.
B54: En af de største ulemper er, at ved høje frekvenser bliver kondensatorens reaktans XC så lav, at den simpelt hen kortslutter
B55: emitter by-pass kondensatoren. Ovenfor ses XChøj for den valgte øvre grænsefrekvens. Derfor opdeles emitter modstanden i to.
U56: ẞ = | V56: =+$C$6 -> 205 | W56: =+$S$1 -> 2N2222A | AA56: Split Emitter Modstand:
B57: Split Emitter Modstand: | U57: Av = | V57: =+F38 -> 3.970892195 | W57: Beregnet | Y57: =+$S$1 -> 2N2222A
B58: Modstanden RE1 i emitter er blevet opdelt i to modstande: RE1 og RE2 som danner en spændingsdeler i | U58: Av = | V58: =+'2N2222A'!J69 -> 4.0853 | W58: =+W31 -> Default for 2N2222A i simulator program
B59: emitter kredsløbet med en by-pass kondensator forbundet i parallel over den nederste modstand RE2. | U59: Av = | V59: =+BC547B!J69 -> 2.63385 | W59: =+W32 -> Default for BC547B i simulator program
B61: Den øverste modstand, RE1 har den samme værdi som før, men er nu ikke by-passed af kondensatoren C3, hvilket skal tages i betragtning,
B62: når signal parametre beregnes. Den nederste modstand RE2 er forbundet i parallel med kondensatoren C4, som anses for at være nul Ohm ved
B63: beregningen af signalparametre, ved de høje frekvenser. Den virker som en kortslutning ved høje frekvenser.
B65: Fordelen er, at vi kan styre AC forstærkerens forstærkning over hele spektret af indgangsfrekvenser. På DC siden bliver den samlede værdi af
B66: emitter modstanden (RE1 + RE2). Mens på AC siden ved højere frekvenser bliver emitter modstand blot: RE1, den samme værdi,
B67: som den havde i den oprindelige ikke by-passed kredsløb, som vist i fig. 1. | AB67: =+AB40 -> 31 kΩ | AF67: =+AF40 -> 1 kΩ
B68: Hvad skal værdien af modstand RE2 så være. Tja, den vil afhænge af den krævede DC spændings forstærkning ved den nedre frekvens cut-off point.
B69: Vi sagde tidligere, at forstærkningen i vores Common Emitter Amplifier kredsløb, som vist ovenfor, var lig med: RC / RE. Men nu bliver DC forstærkningen: | AB69: =+AB42 -> 2N2222A
B70: RC / (RE1 + RE2). Derfor, hvis vi vælger en DC gain på: | F70: =+N72 -> 1 | G70: beregnes værdien af emitter modstand, RE2 som: | AG70: =+AG43 -> 0,16 uF
N71: K4
B72: DC Gain = RC / (RE1 + RE2) = K4 | E72: Når RE2 isoleres fås flg.: | H72: Ønsker du en anden faktor K4 for DC Gain, så tast den her: | M72: DC Gain | N72: 1 | Y72: =+Y45 -> 1,68 uF | AL72: =+AL45 -> 10 Volt
B73: RE2 = (RC/K4 - RE1) = | F73: =(G6*1000/N72-D28) -> 800.9708738 | G73: Ω | I73: =ROUND(F73,0) -> 801 | J73: Ω
B75: Derefter vil DC forstærkningen være: | E75: =+N72 -> 1 | F75: med RE1 = | G75: =+I28 -> 199 | H75: og RE2 = | I75: =+I73 -> 801 | J75: Men bemærk, at AC forstærkningen vil være den samme på: | O75: =+F36 -> 4.403843574 | AB75: =+AB48 -> 7 kΩ | AF75: =+AF48 -> 199 Ω | AJ75: =+AJ48 -> 10 kΩ
B76: En Split Emitter Amplifier har forstærknings værdier for spænding og input impedans et sted mellem en fuld by-pass emitter forstærker og en ikke by-pass emitter forstærker
B77: afhængigt af operations frekvensen. | AB77: =CONCATENATE(R14,S14) -> 20 uF
B79: Ny emitter by-pass kondensator: | AF79: =CONCATENATE(R10,S10) -> 801 Ω
B80: XC2 = RE2/K3 = | F80: =F73/N44 -> 80.09708738 | G80: Ω | H80: NB: Den interne modstand rE bliver ikke by-passed af C3
B81: C4 = 1/(2pi*f3dB lav*XC = | F81: =(1/(2*PI()*K6*F80))*10^6 -> 19.8702535 | G81: uF | I81: =ROUND(F81,0) -> 20 | J81: uF
B82: XC2lav = 1/(2pi*f3dB lav*CE = | F82: =1/(2*PI()*K6*F81*10^-6) -> 80.09708738 | G82: Ω | H82: f3dB | I82: =+I49 -> Ved Nedre Grænse frekvens i Hz 100
B83: XC2høj = 1/(2pi*f3dB høj*CE = | F83: =1/(2*PI()*L6*F81*10^-6) -> 0.2669902913 | G83: Ω | H83: f3dB | I83: =+I50 -> Ved Øvre Grænse frekvens i Hz 30000
B85: Indgangsimpedans
B86: Lad os se på signal overførings kondensatorerne C1, C12 og C13, hvor store skal de være ved "cut-off" frekvensen f3dB? | J86: =CONCATENATE("Her ",K6," Hz") -> Her 100 Hz
B87: Indgangsimpedansen bestemmes af komponenterne på indgangen: R1, R2 og hie. Set fra signalgeneratoren ligger modstandene parallelt
B89: Zin = R1//R2 // hie = 1/((1/R1)+(1/R2)+(1/hie)) = | F89: =1/((1/D27)+(1/D24)+(1/F90)) -> 947.0297872 | G89: Ω | I89: =ROUND(F89,0) -> 947 | J89: Ω
B90: hvor hie = re * hfe = (hie iflg. data blad 0,25KΩ til 8kΩ) | F90: =F91*C6 -> 1136.18733 | G90: Ω | I90: =ROUND(F90,0) -> 1136 | J90: Ω
B91: hvor re = | C91: =+E33 -> Vt/IE = | D91: =CONCATENATE("( IE ",J12,G12," )") -> ( IE mA ) | F91: =+L33/F12 -> 5.542377219 | G91: Ω | I91: =ROUND(F91,2) -> 5.54 | J91: Ω
B92: C1 kigger ind i en impedans på Zin: | F92: =+F89 -> 947.0297872 | G92: Ω | I92: =ROUND(F92,0) -> 947 | J92: Ω
B93: C 1= 1/(2pi*f3dB lav*Zin = | F93: =(1/(2*PI()*K6*F92))*10^6 -> 1.680569558 | G93: uF | I93: =ROUND(F93,2) -> 1.68 | J93: uF
B95: Udgangsimpedans
B96: Udgangsimpedansen Zud bestemmes af Rc og 1/hoe i parallel (1/hoe er transistorens udgangsimpedans). Uafhængig af belastning og afkoblet emitter eller ej
B97: Zud = RC//(1/hoe) = | F97: =G6*F98/(G6+F98) -> 0.9900990099 | G97: kΩ | I97: =ROUND(F97,2) -> 0.99 | J97: kΩ
B98: hvor hoe = | C98: 10 | D98: umhos | E98: eller | F98: =(1/C98)*10^3 -> 100 | G98: kΩ
B99: C2 kigger ind i RL som er belastningen XC2 = | F99: =+J6 -> 10 | G99: kΩ | I99: =(ROUND(F99,0))*1000 -> 10000 | J99: Ω
B100: C2 = 1/(2pi*f3dB lav*XC2 = | F100: =(1/(2*PI()*K6*I99))*10^6 -> 0.1591549431 | G100: uF | I100: =ROUND(F100,2) -> 0.16 | J100: uF
B101: Find nærmeste standard værdier for C1, C2, C3 og C4. Vælg gerne højere værdier frem for lavere værdier
B103: NB: *hoe er transistorens udgangs admittance (ledningsevne) og er i størrelses orden 5 umhos til 200 umhos. Eller omregnet til Ohm 200 kΩ til 5 kΩ . Får derfor minimal betydning i beregningen
B105: walter | N105: Reg. No. 1270
B107: Herunder ses et diagram for alle 3 forstærker med simulations værdier fra mit computer program med default standard værdier
B131: Herunder ses alle testpunkter: Grøn indgangs signal. Gul udgangs signal 1. Ampl. Blå udgangs signal 2. Ampl. Lilla udgangs dignal 3. Ampl.
B152: Test punkterne A, B, C og D på diagrammet ovenfor
B154: Herunder ses signaler: Input grøn Vpp 2mV - Vout gul Fig. 1 Vpp 8,75 mV - Vout lilla Fig. 3 Vpp 8,15
B175: Testpunkt A: | D175: Max ampl. | E175: 1 | F175: Min ampl. | G175: -1 | H175: =E175-G175 -> 2 | I175: mVpp | J175: =H175/(2*SQRT(2)) -> 0.7071067812 | K175: Vrms
B176: Testpunkt B: | D176: Max ampl. | E176: 4.4999 | F176: Min ampl. | G176: -4.2488 | H176: =E176-G176 -> 8.7487 | I176: mVpp | J176: =H176/(2*SQRT(2)) -> 3.093132548 | K176: Vrms | L176: AV = Vout/Vin = | N176: =H176/H175 -> 4.37435 | O176: =J176/J175 -> 4.37435
B177: Testpunkt D: | D177: Max ampl. | E177: 4.1978 | F177: Min ampl. | G177: -3.9493 | H177: =E177-G177 -> 8.1471 | I177: mVpp | J177: =H177/(2*SQRT(2)) -> 2.880434829 | K177: Vrms | L177: AV = Vout/Vin = | N177: =H177/H175 -> 4.07355 | O177: =J177/J175 -> 4.07355
B180: Herunder ses signaler: Input grøn Vpp 2mV - Vout blå Fig. 2 Vpp 307 mV
B201: Testpunkt B: | D201: Max ampl. | E201: 151.88 | F201: Min ampl. | G201: -155.36 | H201: =E201-G201 -> 307.24 | I201: mVpp | J201: =H201/(2*SQRT(2)) -> 108.6257437 | K201: Vrms | L201: AV = Vout/Vin = | N201: =H201/H175 -> 153.62 | O201: =J201/J175 -> 153.62
B204: Herunder ses frekvens kurven for Ampl. 1 gul kurve. Viser cut-off frekvens på ca. 90 Hz
B225: Herunder ses frekvens kurven for Ampl. 3 lilla kurve. Viser cut-off frekvens på 100 Hz
B247: Herunder ses frekvens kurven for Ampl. 2 blå kurve. Viser cut-off frekvens på ca. 400 Hz
B270: Målepunkterne fra A til O viser strømmen i de 3 kredsløb
B292: Målepunkterne fra A til O viser strømmen i de 3 kredsløb

Sheet PNP
B1: Beregning af en DC Stabiliseret AC BJT PNP forstærker med fælles emitter kobling | Q1: PNP Transistor: | S1: =+B6 -> 2N2907A | V1: Diagrammerne herunder er med de aktuelle værdier i røde tal
B3: Vælg en PNP transistor og indsæt disse data herunder: | H3: VBE -0,6 V til -0,9 V - VE -1 til -2 volt eller 10% af Vcc - RL vælges | M3: Udarbejdet af Jørgen Walter © | Q3: Værdierne herunder er de aktuelle værdier | U3: ẞ = | V3: =+$C$6 -> 154 | W3: =+$S$1 -> 2N2907A | AA3: Common Emitter Amplifier
B4: =CONCATENATE("Find ẞ = hfe ved en IC på ", J10,G10," og VCE på ",J16,E16) -> Find ẞ = hfe ved en IC på -5 mA og VCE på -4 V | F4: Vcc | G4: RC vælges | H4: VBE volt | I4: VE vælges | J4: RL | K4: Grænse frekvens i Hz | Q4: som skifter med indsatte data | U4: Av = | V4: =+F36 -> 4.410923262 | W4: Beregnet | Y4: =+$S$1 -> 2N2907A
B5: Vælg ẞ fra data blad | D5: *Min | E5: *Max | F5: Volt | G5: kΩ | H5: Silicium | I5: Volt | J5: kΩ | K5: Nedre | L5: Øvre | M5: www.walter-lystfisker.dk | Q5: Det var modstandene | U5: Av = | V5: =+'2N2907A'!J45 -> 4.38665 | W5: Default for 2N2907A i simulator program
B6: 2N2907A | C6: =INT(SQRT(D6*E6)) -> 154 | D6: 154 | E6: 154 | F6: -10 | G6: 1 | H6: -0.7 | I6: -1 | J6: 10 | K6: 100 | L6: 30000 | M6: COPYRIGHT © 2014 | Q6: R1 | R6: =+I27 -> 23 | S6: =+J27 -> kΩ | U6: Av = | V6: =+BC557B!J45 -> 2.9103 | W6: Default for BC557B i simulator program
B7: Common Emitter Amplifier | Q7: R2 | R7: =+I24 -> 5.2 | S7: =+J24 -> kΩ
B8: *Ønskes en bestemt ẞ værdi i grøn celle, indsættes denne værdi i Min og Max, som her: | H8: 154 | I8: Iflg. datablad: | J8: 100 til 300 | Q8: RC | R8: =+G6 -> 1 | S8: =+G5 -> kΩ
B9: De tre nedenfor stående formler er et udtryk for hvilestrømmen i transistoren uden signal og ingen belastning. Quiescent Point - Q-point | Q9: RE1 | R9: =+I28 -> 199 | S9: =+J28 -> Ω
B10: ICQ = ½*Vcc/Rc = | D10: =(F6/2)/(G6*1000) -> -0.005 | E10: A | F10: =D10*1000 -> -5 | G10: mA | H10: ICQ = Collector hvilestrøm | J10: =ROUND(F10,0) -> -5 | Q10: RE2 | R10: =+I73 -> 801 | S10: =+J73 -> Ω
B11: IB = ICQ/ẞ = | D11: =D10/C6 -> -3.246753247e-05 | E11: A | F11: =D11*1000 -> -0.03246753247 | G11: mA | H11: IB = Base strøm | Q11: RL | R11: =+J6 -> 10 | S11: =+J5 -> kΩ
B12: IE=ICQ+IB= | D12: =D10+D11 -> -0.005032467532 | E12: A | F12: =D12*1000 -> -5.032467532 | G12: mA | H12: IE = Emitter strøm | K12: Disse makro knapper indsætter default værdier | Q12: Det var afkoblings kondensatorerne
B13: IEs split emitter = VE/(RE1+RE2) = | D13: =I6/(D28+F73) -> -0.001 | E13: A | F13: =D13*1000 -> -1 | G13: mA | H13: IEs = Split Emitter strøm | Q13: C3 | R13: =+I48 -> 80 | S13: =+J48 -> uF | AB13: =CONCATENATE(R6,S6) -> 23 kΩ | AF13: =CONCATENATE(R8,S8) -> 1 kΩ
Q14: C4 | R14: =+I81 -> 20 | S14: =+J81 -> uF
B15: VRC = ICQ * RC = | D15: =F10*G6 -> -5 | E15: V | Q15: Det var overførings kondensatorerne | AB15: =+B6 -> 2N2907A
B16: VCE = VCC - VE - (RC*ICQ) = | D16: =F6-I6-(G6*1000*D10) -> -4 | E16: V | J16: =ROUND(D16,0) -> -4 | Q16: C1 - C12 - C13 | R16: =+I93 -> 2.24 | S16: =+J93 -> uF | AG16: =CONCATENATE(R17,S17) -> 0,16 uF
B17: VE skal vælges = | D17: =+I6 -> -1 | E17: V | F17: normal vil den være mellem 1 volt og 2 volt, eller 10% af Vcc | Q17: C2 - C22 - C23 | R17: =+I100 -> 0.16 | S17: =+J100 -> uF
B18: Vcc kontrol = | D18: =SUM(D15:D17) -> -10 | E18: V | F18: =IF(D18=F6,"Korrekt","Fejl") -> Korrekt | Y18: =CONCATENATE(R16,S16) -> 2,24 uF | AL18: =CONCATENATE(F6,F5) -> -10 Volt
B19: VBE er normal = | D19: =+H6 -> -0.7 | E19: V | F19: for silicium transistorer (Base Emitter spændingen) | Q19: Liste for VBE i volt
B20: VB = VE + VBE = | D20: =I6+H6 -> -1.7 | E20: V | Q20: -0.1
H21: De røde afrundet værdier indsættes i diagrammerne | Q21: -0.2 | R21: Germanium | AB21: =CONCATENATE(R7,S7) -> 5,2 kΩ | AF21: =CONCATENATE(R9,S9) -> 199 Ω | AJ21: =CONCATENATE(R11,S11) -> 10 kΩ
B22: R2 skal beregnes. Normalt skal strømmen gennem R2 være 10 gange IB | L22: K2 strøm faktor R2 | N22: 10 | Q22: -0.3 | R22: Germanium
B23: IR2 = K2 * IB = | F23: =N22*F11 -> -0.3246753247 | G23: mA | L23: Andre værdier af strøm faktorer | Q23: -0.4
B24: R2 = VB/IR2 = | D24: =D20/(F23*10^-3) -> 5236 | E24: Ohm | F24: =D24/1000 -> 5.236 | G24: kΩ | I24: =ROUND(F24,1) -> 5.2 | J24: kΩ | Q24: -0.5
B25: R1 skal beregnes. Normalt skal strømmen gennem R1 være 11 gange IB | L25: K1 strøm faktor R1 | N25: 11 | Q25: -0.6 | R25: Silicium BJT
B26: IR1 = K1 * IB = | F26: =N25*F11 -> -0.3571428571 | G26: mA | Q26: -0.7 | R26: Silicium BJT
B27: R1 = (Vcc - VB)/IR1 = | D27: =(F6-D20)/(F26*10^-3) -> 23240 | E27: Ω | F27: =D27/1000 -> 23.24 | G27: kΩ | I27: =ROUND(F27,0) -> 23 | J27: kΩ | Q27: -0.8 | R27: Silicium BJT
B28: RE1 = VE/IE = | D28: =I6/(F12*10^-3) -> 198.7096774 | E28: Ω | F28: =D28/1000 -> 0.1987096774 | G28: kΩ | I28: =ROUND(D28,0) -> 199 | J28: Ω | Q28: -0.9 | R28: Silicium BJT
Q29: -1 | U29: ẞ = | V29: =+$C$6 -> 154 | W29: =+$S$1 -> 2N2907A | AA29: Emitter by-pass kondensator:
B30: Gain = Zud/ZE = (RC//(1/hoe)//RL)/ZE - I tæller har RC størst indflydelse, derefter RL, og *hoe sættes til 10 umhos. I nævner kan ZE antage 2 værdier uden / med kondensator C3 | U30: Av = | V30: =+F37 -> 162.809056 | W30: Beregnet | Y30: =+$S$1 -> 2N2907A
B31: Zud = RC//(1/hoe) = | F31: =+F97 -> 0.9900990099 | G31: kΩ | H31: se nederst på siden under udgangsimpedans | U31: Av = | V31: =+'2N2907A'!$J$93 -> 146.2 | W31: =+W5 -> Default for 2N2907A i simulator program
B32: ZE uden C3 = (RE1 + rE) for ikke afkoblet emitter | F32: =D28+F33 -> 204.2431589 | G32: Ω | H32: rE afhænger af Boltzmanns konstant og temperaturen i Kelvin. Se T.H. overfor -------------------------------------------------> | Q32: rE = Vt/IE = | S32: =S37/S44 -> 5.533481508 | T32: Ω | U32: Av = | V32: =+BC557B!$J$93 -> 103.325 | W32: =+W6 -> Default for BC557B i simulator program
B33: ZE med C3 = rE for afkoblet emitter = | E33: Vt/IE = | F33: =L33/F12 -> 5.533481508 | G33: Ω | H33: rE emitterens indre modstand, som varierer med IE og Vt = | L33: =+S37 -> -27.84706603 | M33: mV | N33: Vt mellem 25 og 30 [ 20°C og 80°C]
B34: ZE uden C3 = (RE1 + rEE) for ikke afkoblet emitter | F34: =+D28+F35 -> 226.5567434 | G34: Ω
B35: ZE for split emitter = (RE1 + rEE) = | E35: Vt/IEs = | F35: =L33/F13 -> 27.84706603 | G35: Ω | Q35: http://en.wikipedia.org/wiki/Boltzmann%27s_constant
B36: Gain (uden C3) = (Zud//RL)/ZE uden C3 = | F36: =((F31*J6)/(F31+J6))*1000/F32 -> 4.410923262 | H36: Diagram Fig. 1 Uden kondensator C3
B37: Gain (med C3) = (Zud//RL)/ZE med C3 = | F37: =((F31*J6)/(F31+J6))*1000/F33 -> 162.809056 | H37: Diagram Fig. 2 Med kondensator C4 | Q37: Vt = k *T / q = (k/q) *T = KB*T = | S37: =(S43*S40)*1000 -> -27.84706603 | T37: [mVolt]
B38: Gain (Split) = (Zud//RL)/ZE uden C3 = | F38: =((F31*J6)/(F31+J6))*1000/F34 -> 3.976491219 | H38: Diagram Fig. 3 Split Emitter modstand. Lidt mindre end fig. 1, da rEE er større på grund af at IEs er mindre | Q38: Vt = thermal spænding over p-n overgangen i transistoren
Q39: k = Boltzmanns konstant = | S39: 1,3806488*10^-23 | T39: [J/K]
B40: Emitter modstanden RE1 i diagrammet Fig. 1 ovenfor har to funktioner. 1. DC negativ feedback for stabil base forspænding (biasing). 2. AC negativ feedback for signalet og spændings | Q40: T = Kelvin grader | S40: =S41+S45 -> 323.15 | T40: [K] | AB40: =+AB13 -> 23 kΩ | AF40: =+AF13 -> 1 kΩ
B41: forstærkningen (gain). Det medfører en reduktion af forstærkningen på grund af, at der sker en fluktuation i IE strømmen, når AC signalet på indgangen ændre sig. | Q41: Temperatur inden i transistoren = | S41: 50 | T41: [°C]
B42: For at afhjælpe dette problem kan der indføres en kondensator CE (Emitter by-pass kondensator). Se diagrammet i Fig. 2 nedenfor. Kondensatoren har et åbent kredsløb for DC, | Q42: q = negativ ladning = | S42: 1,602176565*10^-19 | T42: [Coulomb] | AB42: =+AB15 -> 2N2907A
B43: men en reaktans XC for AC, som er afhængig af signalet (frekvensen). Reaktansen XC vælges til 1/10 af Emitter modstanden RE1 ved den nedre cut-off frekvens. | Q43: KB Boltzmanns eV konstant = k/q = | S43: =(1.3806488/10^23)/((1.602167565/10^19))*-1 -> -8.617380792e-05 | T43: [eV/K] | AG43: =+AG16 -> 0,16 uF
B44: Ved lave frekvenser mister forstærkeren dog nogen Gain. Ønsker du en anden faktor K3 , så tast den her: | M44: K3 | N44: 10 | Q44: IE = Emitter strømmen | S44: =+F12 -> -5.032467532 | T44: [mA]
Q45: 0 K = | S45: 273.15 | T45: °C | Y45: =+Y18 -> 2,24 uF | AL45: =+AL18 -> -10 Volt
B46: Emitter by-pass kondensator: | Q46: NB: q regnes med fortegn. Her minus.
B47: XC = RE1/K3 = | F47: =D28/N44 -> 19.87096774 | G47: Ω | Q47: Kommer af at IE regnes negativ i PNP transistorer.
B48: C3 = 1/(2pi*f3dB lav*XC = | F48: =(1/(2*PI()*K6*F47))*10^6 -> 80.09420837 | G48: uF | I48: =ROUND(F48,0) -> 80 | J48: uF | AB48: =+AB21 -> 5,2 kΩ | AF48: =+AF21 -> 199 Ω | AJ48: =+AJ21 -> 10 kΩ
B49: XClav = 1/(2pi*f3dB lav*CE = | F49: =1/(2*PI()*K6*F48*10^-6) -> 19.87096774 | G49: Ω | H49: f3dB | I49: =CONCATENATE("Ved ",K5,K4,K6) -> Ved Nedre Grænse frekvens i Hz 100
B50: XChøj = 1/(2pi*f3dB høj*CE = | F50: =1/(2*PI()*L6*F48*10^-6) -> 0.06623655914 | G50: Ω | H50: f3dB | I50: =CONCATENATE("Ved ",L5,K4,L6) -> Ved Øvre Grænse frekvens i Hz 30000
B52: Emitter by-pass kondensatoren bevirker en ensartet forstærkning ved spredning af beta værdierne for den enkelte transistor. | AB52: =CONCATENATE(R13,S13) -> 80 uF
B53: Træerne vokser som bekendt ikke ind i himlen, så der er også ulemper ved at indsætte en emitter by-pass kondensator.
B54: En af de største ulemper er, at ved høje frekvenser bliver kondensatorens reaktans XC så lav, at den simpelt hen kortslutter
B55: emitter by-pass kondensatoren. Ovenfor ses XChøj for den valgte øvre grænsefrekvens. Derfor opdeles emitter modstanden i to.
U56: ẞ = | V56: =+$C$6 -> 154 | W56: =+$S$1 -> 2N2907A | AA56: Split Emitter Modstand:
B57: Split Emitter Modstand: | U57: Av = | V57: =+F38 -> 3.976491219 | W57: Beregnet | Y57: =+$S$1 -> 2N2907A
B58: Modstanden RE1 i emitter er blevet opdelt i to modstande: RE1 og RE2 som danner en spændingsdeler i | U58: Av = | V58: =+'2N2907A'!$J$69 -> 4.07825 | W58: =+W31 -> Default for 2N2907A i simulator program
B59: emitter kredsløbet med en by-pass kondensator forbundet i parallel over den nederste modstand RE2. | U59: Av = | V59: =+BC557B!$J$69 -> 2.6356 | W59: =+W32 -> Default for BC557B i simulator program
B61: Den øverste modstand, RE1 har den samme værdi som før, men er nu ikke by-passed af kondensatoren C3, hvilket skal tages i betragtning,
B62: når signal parametre beregnes. Den nederste modstand RE2 er forbundet i parallel med kondensatoren C4, som anses for at være nul Ohm ved
B63: beregningen af signalparametre, ved de høje frekvenser. Den virker som en kortslutning ved høje frekvenser.
B65: Fordelen er, at vi kan styre AC forstærkerens forstærkning over hele spektret af indgangsfrekvenser. På DC siden bliver den samlede værdi af
B66: emitter modstanden (RE1 + RE2). Mens på AC siden ved højere frekvenser bliver emitter modstand blot: RE1, den samme værdi,
B67: som den havde i den oprindelige ikke by-passed kredsløb, som vist i fig. 1. | AB67: =+AB40 -> 23 kΩ | AF67: =+AF40 -> 1 kΩ
B68: Hvad skal værdien af modstand RE2 så være. Tja, den vil afhænge af den krævede DC spændings forstærkning ved den nedre frekvens cut-off point.
B69: Vi sagde tidligere, at forstærkningen i vores Common Emitter Amplifier kredsløb, som vist ovenfor, var lig med: RC / RE. Men nu bliver DC forstærkningen: | AB69: =+AB42 -> 2N2907A
B70: RC / (RE1 + RE2). Derfor, hvis vi vælger en DC gain på: | F70: =+N72 -> 1 | G70: beregnes værdien af emitter modstand, RE2 som: | AG70: =+AG43 -> 0,16 uF
N71: K4
B72: DC Gain = RC / (RE1 + RE2) = K4 | E72: Når RE2 isoleres fås flg.: | H72: Ønsker du en anden faktor K4 for DC Gain, så tast den her: | M72: DC Gain | N72: 1 | Y72: =+Y45 -> 2,24 uF | AL72: =+AL45 -> -10 Volt
B73: RE2 = (RC/K4 - RE1) = | F73: =(G6*1000/N72-D28) -> 801.2903226 | G73: Ω | I73: =ROUND(F73,0) -> 801 | J73: Ω
B75: Derefter vil DC forstærkningen være: | E75: =+N72 -> 1 | F75: med RE1 = | G75: =+I28 -> 199 | H75: og RE2 = | I75: =+I73 -> 801 | J75: Men bemærk, at AC forstærkningen vil være den samme på: | O75: =+F36 -> 4.410923262 | AB75: =+AB48 -> 5,2 kΩ | AF75: =+AF48 -> 199 Ω | AJ75: =+AJ48 -> 10 kΩ
B76: En Split Emitter Amplifier har forstærknings værdier for spænding og input impedans et sted mellem en fuld by-pass emitter forstærker og en ikke by-pass emitter forstærker
B77: afhængigt af operations frekvensen. | AB77: =CONCATENATE(R14,S14) -> 20 uF
B79: Ny emitter by-pass kondensator: | AF79: =CONCATENATE(R10,S10) -> 801 Ω
B80: XC2 = RE2/K3 = | F80: =F73/N44 -> 80.12903226 | G80: Ω | H80: NB: Den interne modstand rE bliver ikke by-passed af C3
B81: C4 = 1/(2pi*f3dB lav*XC = | F81: =(1/(2*PI()*K6*F80))*10^6 -> 19.86233187 | G81: uF | I81: =ROUND(F81,0) -> 20 | J81: uF
B82: XC2lav = 1/(2pi*f3dB lav*CE = | F82: =1/(2*PI()*K6*F81*10^-6) -> 80.12903226 | G82: Ω | H82: f3dB | I82: =+I49 -> Ved Nedre Grænse frekvens i Hz 100
B83: XC2høj = 1/(2pi*f3dB høj*CE = | F83: =1/(2*PI()*L6*F81*10^-6) -> 0.2670967742 | G83: Ω | H83: f3dB | I83: =+I50 -> Ved Øvre Grænse frekvens i Hz 30000
B85: Indgangsimpedans
B86: Lad os se på signal overførings kondensatorerne C1, C12 og C13, hvor store skal de være ved "cut-off" frekvensen f3dB? | J86: =CONCATENATE("Her ",K6," Hz") -> Her 100 Hz
B87: Indgangsimpedansen bestemmes af komponenterne på indgangen: R1, R2 og hie. Set fra signalgeneratoren ligger modstandene parallelt
B89: Zin = R1//R2 // hie = 1/((1/R1)+(1/R2)+(1/hie)) = | F89: =1/((1/D27)+(1/D24)+(1/F90)) -> 710.4752374 | G89: Ω | I89: =ROUND(F89,0) -> 710 | J89: Ω
B90: hvor hie = re * hfe = (hie iflg. data blad 0,25KΩ til 8kΩ) | F90: =F91*C6 -> 852.1561522 | G90: Ω | I90: =ROUND(F90,0) -> 852 | J90: Ω
B91: hvor re = | C91: =+E33 -> Vt/IE = | D91: =CONCATENATE("( IE ",J12,G12," )") -> ( IE mA ) | F91: =+L33/F12 -> 5.533481508 | G91: Ω | I91: =ROUND(F91,2) -> 5.53 | J91: Ω
B92: C1 kigger ind i en impedans på Zin: | F92: =+F89 -> 710.4752374 | G92: Ω | I92: =ROUND(F92,0) -> 710 | J92: Ω
B93: C 1= 1/(2pi*f3dB lav*Zin = | F93: =(1/(2*PI()*K6*F92))*10^6 -> 2.240119496 | G93: uF | I93: =ROUND(F93,2) -> 2.24 | J93: uF
B95: Udgangsimpedans
B96: Udgangsimpedansen Zud bestemmes af Rc og 1/hoe i parallel (1/hoe er transistorens udgangsimpedans). Uafhængig af belastning og afkoblet emitter eller ej
B97: Zud = RC//(1/hoe) = | F97: =G6*F98/(G6+F98) -> 0.9900990099 | G97: kΩ | I97: =ROUND(F97,2) -> 0.99 | J97: kΩ
B98: hvor hoe = | C98: 10 | D98: umhos | E98: eller | F98: =(1/C98)*10^3 -> 100 | G98: kΩ
B99: C2 kigger ind i RL som er belastningen XC2 = | F99: =+J6 -> 10 | G99: kΩ | I99: =(ROUND(F99,0))*1000 -> 10000 | J99: Ω
B100: C2 = 1/(2pi*f3dB lav*XC2 = | F100: =(1/(2*PI()*K6*I99))*10^6 -> 0.1591549431 | G100: uF | I100: =ROUND(F100,2) -> 0.16 | J100: uF
B101: Find nærmeste standard værdier for C1, C2, C3 og C4. Vælg gerne højere værdier frem for lavere værdier
B103: NB: *hoe er transistorens udgangs admittance (ledningsevne) og er i størrelses orden 5 umhos til 200 umhos. Eller omregnet til Ohm 200 kΩ til 5 kΩ . Får derfor minimal betydning i beregningen
B105: walter | N105: Reg. No. 1270
B107: Herunder ses et diagram for alle 3 forstærker med simulations værdier fra mit computer program med default standard værdier
B131: Herunder ses alle testpunkter: Grøn indgangs signal. Gul udgangs signal 1. Ampl. Blå udgangs signal 2. Ampl. Lilla udgangs dignal 3. Ampl.
B152: Test punkterne A, B, C og D på diagrammet ovenfor
B154: Herunder ses signaler: Input grøn Vpp 2mV - Vout gul Fig. 1 Vpp 8,77 mV - Vout lilla Fig. 3 Vpp 8,16
B175: Testpunkt A: | D175: Max ampl. | E175: 1 | F175: Min ampl. | G175: -1 | H175: =E175-G175 -> 2 | I175: mVpp | J175: =H175/(2*SQRT(2)) -> 0.7071067812 | K175: Vrms
B176: Testpunkt B: | D176: Max ampl. | E176: 4.5337 | F176: Min ampl. | G176: -4.2386 | H176: =E176-G176 -> 8.7723 | I176: mVpp | J176: =H176/(2*SQRT(2)) -> 3.101476408 | K176: Vrms | L176: AV = Vout/Vin = | N176: =H176/H175 -> 4.38615 | O176: =J176/J175 -> 4.38615
B177: Testpunkt D: | D177: Max ampl. | E177: 4.2233 | F177: Min ampl. | G177: -3.9424 | H177: =E177-G177 -> 8.1657 | I177: mVpp | J177: =H177/(2*SQRT(2)) -> 2.887010922 | K177: Vrms | L177: AV = Vout/Vin = | N177: =H177/H175 -> 4.08285 | O177: =J177/J175 -> 4.08285
B180: Herunder ses signaler: Input grøn Vpp 2mV - Vout blå Fig. 2 Vpp 294 mV
B201: Testpunkt B: | D201: Max ampl. | E201: 147.04 | F201: Min ampl. | G201: -147.05 | H201: =E201-G201 -> 294.09 | I201: mVpp | J201: =H201/(2*SQRT(2)) -> 103.9765166 | K201: Vrms | L201: AV = Vout/Vin = | N201: =H201/H175 -> 147.045 | O201: =J201/J175 -> 147.045
B204: Herunder ses frekvens kurven for Ampl. 1 gul kurve. Viser cut-off frekvens på ca. 90 Hz
B225: Herunder ses frekvens kurven for Ampl. 3 lilla kurve. Viser cut-off frekvens på 110 Hz
B247: Herunder ses frekvens kurven for Ampl. 2 blå kurve. Viser cut-off frekvens på ca. 400 Hz
B270: Målepunkterne fra A til O viser strømmen i de 3 kredsløb
B292: Målepunkterne fra A til O viser strømmen i de 3 kredsløb

Sheet 2N2222A
T1: Herunder diagram fig.1 | AL1: Herunder diagram fig.1
T22: Fig. 1 Gul kurve nedre grænsefrekvens | X22: f3dB = | Y22: 90 | Z22: Hz
AL23: Fig. 1 Gul kurve øvre grænsefrekvens | AP23: f3dB = | AQ23: 22 | AR23: MHz
B24: Herunder diagram fig.1 | T24: Herunder diagram fig.3 | AL24: Herunder diagram fig.3
B45: Vin = | C45: 2 | D45: mVpp | E45: Vout = | F45: 8.8418 | G45: mVpp | H45: Av = | I45: Vout/Vin | J45: =F45/C45 -> 4.4209 | T45: Fig. 3 Lillal kurve nedre grænsefrekvens | X45: f3dB = | Y45: 100 | Z45: Hz | AL45: Fig. 3 Lilla kurve øvre grænsefrekvens | AP45: f3dB = | AQ45: 29 | AR45: MHz
B48: Herunder diagram fig.3 | T48: Herunder diagram fig.2 | AL48: Herunder diagram fig.2
B69: Vin = | C69: 2 | D69: mVpp | E69: Vout = | F69: 8.1706 | G69: mVpp | H69: Av = | I69: Vout/Vin | J69: =F69/C69 -> 4.0853 | T69: Fig. 2 Blå kurve nedre grænsefrekvens | X69: f3dB = | Y69: 450 | Z69: Hz | AL69: Fig. 2 Blå kurve øvre grænsefrekvens | AP69: f3dB = | AQ69: 17 | AR69: MHz
B72: Herunder diagram fig.2
B93: Vin = | C93: 2 | D93: mVpp | E93: Vout = | F93: 292.66 | G93: mVpp | H93: Av = | I93: Vout/Vin | J93: =F93/C93 -> 146.33

Sheet BC547B
T1: Herunder diagram fig.1 | AL1: Herunder diagram fig.1
T22: Fig. 1 Gul kurve nedre grænsefrekvens | X22: f3dB = | Y22: 5 | Z22: Hz | AL22: Fig. 1 Gul kurve øvre grænsefrekvens | AP22: f3dB = | AQ22: 62 | AR22: MHz
B24: Herunder diagram fig.1 | T24: Herunder diagram fig.3 | AL24: Herunder diagram fig.3
B45: Vin = | C45: 2 | D45: mVpp | E45: Vout = | F45: 5.8128 | G45: mVpp | H45: Av = | I45: Vout/Vin | J45: =F45/C45 -> 2.9064 | T45: Fig. 3 Lillal kurve nedre grænsefrekvens | X45: f3dB = | Y45: 8 | Z45: Hz | AL45: Fig. 3 Lilla kurve øvre grænsefrekvens | AP45: f3dB = | AQ45: 80 | AR45: MHz
B48: Herunder diagram fig.3 | T48: Herunder diagram fig.2 | AL48: Herunder diagram fig.2
B69: Vin = | C69: 2 | D69: mVpp | E69: Vout = | F69: 5.2677 | G69: mVpp | H69: Av = | I69: Vout/Vin | J69: =F69/C69 -> 2.63385 | T69: Fig. 2 Blå kurve nedre grænsefrekvens | X69: f3dB = | Y69: 45 | Z69: Hz | AL69: Fig. 2 Blå kurve øvre grænsefrekvens | AP69: f3dB = | AQ69: 42 | AR69: MHz
B72: Herunder diagram fig.2
B93: Vin = | C93: 2 | D93: mVpp | E93: Vout = | F93: 206.63 | G93: mVpp | H93: Av = | I93: Vout/Vin | J93: =F93/C93 -> 103.315

Sheet 2N2907A
T1: Herunder diagram fig.1 | AL1: Herunder diagram fig.1
T22: Fig. 1 Gul kurve nedre grænsefrekvens | X22: f3dB = | Y22: 90 | Z22: Hz | AL22: Fig. 1 Gul kurve øvre grænsefrekvens | AP22: f3dB = | AQ22: 16 | AR22: MHz
B24: Herunder diagram fig.1 | T24: Herunder diagram fig.3 | AL24: Herunder diagram fig.3
B45: Vin = | C45: 2 | D45: mVpp | E45: Vout = | F45: 8.7733 | G45: mVpp | H45: Av = | I45: Vout/Vin | J45: =F45/C45 -> 4.38665 | T45: Fig. 3 Lillal kurve nedre grænsefrekvens | X45: f3dB = | Y45: 100 | Z45: Hz | AL45: Fig. 3 Lilla kurve øvre grænsefrekvens | AP45: f3dB = | AQ45: 20 | AR45: MHz
B48: Herunder diagram fig.3 | T48: Herunder diagram fig.2 | AL48: Herunder diagram fig.2
B69: Vin = | C69: 2 | D69: mVpp | E69: Vout = | F69: 8.1565 | G69: mVpp | H69: Av = | I69: Vout/Vin | J69: =F69/C69 -> 4.07825 | T69: Fig. 2 Blå kurve nedre grænsefrekvens | X69: f3dB = | Y69: 375 | Z69: Hz | AL69: Fig. 2 Blå kurve øvre grænsefrekvens | AP69: f3dB = | AQ69: 11 | AR69: MHz
B72: Herunder diagram fig.2
B93: Vin = | C93: 2 | D93: mVpp | E93: Vout = | F93: 292.4 | G93: mVpp | H93: Av = | I93: Vout/Vin | J93: =F93/C93 -> 146.2

Sheet BC557B
T1: Herunder diagram fig.1 | AL1: Herunder diagram fig.1
T22: Fig. 1 Gul kurve nedre grænsefrekvens | X22: f3dB = | Y22: 5 | Z22: Hz | AL22: Fig. 1 Gul kurve øvre grænsefrekvens | AP22: f3dB = | AQ22: 39 | AR22: MHz
B24: Herunder diagram fig.1 | T24: Herunder diagram fig.3 | AL24: Herunder diagram fig.3
B45: Vin = | C45: 2 | D45: mVpp | E45: Vout = | F45: 5.8206 | G45: mVpp | H45: Av = | I45: Vout/Vin | J45: =F45/C45 -> 2.9103 | T45: Fig. 3 Lillal kurve nedre grænsefrekvens | X45: f3dB = | Y45: 8 | Z45: Hz | AL45: Fig. 3 Lilla kurve øvre grænsefrekvens | AP45: f3dB = | AQ45: 47 | AR45: MHz
B48: Herunder diagram fig.3 | T48: Herunder diagram fig.2 | AL48: Herunder diagram fig.2
B69: Vin = | C69: 2 | D69: mVpp | E69: Vout = | F69: 5.2712 | G69: mVpp | H69: Av = | I69: Vout/Vin | J69: =F69/C69 -> 2.6356 | T69: Fig. 2 Blå kurve nedre grænsefrekvens | X69: f3dB = | Y69: 45 | Z69: Hz | AL69: Fig. 2 Blå kurve øvre grænsefrekvens | AP69: f3dB = | AQ69: 25 | AR69: MHz
B72: Herunder diagram fig.2
B93: Vin = | C93: 2 | D93: mVpp | E93: Vout = | F93: 206.65 | G93: mVpp | H93: Av = | I93: Vout/Vin | J93: =F93/C93 -> 103.325

Sheet Q point
B1: Se også disse to web site for mere info om Q-Point
B2: http://www.electronics-tutorials.ws/transistor/tran_2.html | K2: http://hyperphysics.phy-astr.gsu.edu/hbase/electronic/loadline.html#c2
